fUST/lending_fUST_20250310
["ID","MTS","AMOUNT","RATE_DAILY","PERIOD"]
[355784438,1741561834284,-500.0,0.00025274,2]
[355784439,1741561834295,-500.0,0.00025274,2]
[355784440,1741561834306,-500.0,0.00025274,2]
[355784441,1741561834318,-500.0,0.00025274,2]
[355784442,1741561834330,-500.0,0.00025274,2]
[355784443,1741561834342,-500.0,0.00025274,2]
[355784444,1741561834354,-500.0,0.00025274,2]
[355784445,1741561834364,-500.0,0.00025274,2]
[355784446,1741561834375,-300.0,0.00025274,2]
[355784447,1741561834384,-500.0,0.00025274,2]
[355784448,1741561834393,-500.0,0.00025274,2]
[355784449,1741561834405,-500.0,0.00025274,2]
[355784450,1741561834415,-500.0,0.00025274,2]
[355784451,1741561834516,-500.0,0.00025274,2]
[355784452,1741561834538,-500.0,0.00025274,2]
[355784453,1741561834549,-500.0,0.00025274,2]
[355784454,1741561834559,-500.0,0.00025274,2]
[355784455,1741561834570,-500.0,0.00025274,2]
[355784456,1741561834581,-500.0,0.00025274,2]
[355784457,1741561834591,-500.0,0.00025274,2]
[355784458,1741561834602,-500.0,0.00025274,2]
[355784459,1741561834613,-500.0,0.00025274,2]
[355784460,1741561834623,-500.0,0.00025274,2]
[355784461,1741561834633,-155.55434438,0.00025274,2]
[355784462,1741561834643,-491.40100805,0.00025274,2]
[355784463,1741561834653,-18465.08497233,0.00025275,2]
[355784464,1741561834813,-7918.97238113,0.00025275,2]
[355784465,1741561834826,-4112.28191642,0.00025275,2]
[355784466,1741561834839,-3203.24971966,0.00025275,2]
[355784467,1741561834888,-500.0,0.00025273,2]
[355784468,1741561834898,-7500.1,0.00025275,2]
[355784469,1741561834923,-282.85711378,0.00025273,2]
[355784470,1741561837579,204.017126,0.00024633,2]
[355784482,1741561838013,422.30228626,0.00029,10]
[355784502,1741561838451,-336.79079325,0.00025273,2]
[355784503,1741561838462,-500.0,0.00025273,2]
[355784504,1741561838472,-500.0,0.00025273,2]
[355784505,1741561838482,-500.0,0.00025273,2]
[355784506,1741561838492,-599.2573665,0.00025273,2]
[355784507,1741561838581,-12.45678069,0.00025273,2]
[355784508,1741561838591,-500.0,0.00025273,2]
[355784509,1741561838601,-500.0,0.00025273,2]
[355784510,1741561838611,-552.31537716,0.00025273,2]
[355784511,1741561838620,-500.0,0.00025273,2]
[355784512,1741561838630,-500.0,0.00025273,2]
[355784513,1741561838640,-500.0,0.00025273,2]
[355784514,1741561838650,-500.0,0.00025273,2]
[355784515,1741561838660,-500.0,0.00025273,2]
[355784516,1741561838670,-500.0,0.00025273,2]
[355784517,1741561838680,-500.0,0.00025273,2]
[355784518,1741561838689,-500.0,0.00025273,2]
[355784519,1741561838699,-500.0,0.00025273,2]
[355784520,1741561838709,-500.0,0.00025273,2]
[355784521,1741561838719,-500.0,0.00025273,2]
[355784522,1741561838729,-500.0,0.00025273,2]
[355784523,1741561838739,-435.32784216,0.00025273,2]
[355784524,1741561838752,-57.87866874,0.00025273,2]
[355784525,1741561838762,-500.0,0.00025273,2]
[355784526,1741561838772,-500.0,0.00025273,2]
[355784527,1741561838783,-500.0,0.00025273,2]
[355784528,1741561838793,-500.0,0.00025273,2]
[355784529,1741561838804,-500.0,0.00025273,2]
[355784530,1741561838813,-500.0,0.00025273,2]
[355784531,1741561838823,-500.0,0.00025273,2]
[355784532,1741561838833,-500.0,0.00025273,2]
[355784533,1741561838842,-500.0,0.00025273,2]
[355784534,1741561838852,-500.0,0.00025273,2]
[355784535,1741561838862,-500.0,0.00025273,2]
[355784536,1741561838872,-508.08163812,0.00025273,2]
[355784537,1741561838882,-500.0,0.00025273,2]
[355784538,1741561838892,-500.0,0.00025273,2]
[355784539,1741561838901,-500.0,0.00025273,2]
[355784540,1741561838911,-500.0,0.00025273,2]
[355784541,1741561838921,-500.0,0.00025273,2]
[355784542,1741561838932,-500.0,0.00025273,2]
[355784543,1741561838942,-500.0,0.00025273,2]
[355784544,1741561838953,-500.0,0.00025273,2]
[355784545,1741561838964,-500.0,0.00025273,2]
[355784546,1741561838978,-500.0,0.00025273,2]
[355784547,1741561838989,-500.0,0.00025273,2]
[355784548,1741561839000,-500.0,0.00025273,2]
[355784549,1741561839012,-500.0,0.00025273,2]
[355784550,1741561839022,-500.0,0.00025273,2]
[355784551,1741561839032,-500.0,0.00025273,2]
[355784552,1741561839042,-500.0,0.00025273,2]
[355784553,1741561839052,-500.0,0.00025273,2]
[355784554,1741561839062,-500.0,0.00025273,2]
[355784555,1741561839073,-500.0,0.00025273,2]
[355784556,1741561839084,-500.0,0.00025273,2]
[355784557,1741561839094,-500.0,0.00025273,2]
[355784558,1741561839104,-500.0,0.00025273,2]
[355784559,1741561839115,-500.0,0.00025273,2]
[355784560,1741561839125,-500.0,0.00025273,2]
[355784561,1741561839136,-500.0,0.00025273,2]
[355784562,1741561839146,-500.0,0.00025273,2]
[355784563,1741561839158,-500.0,0.00025273,2]
[355784564,1741561839169,-500.0,0.00025273,2]
[355784565,1741561839178,-500.0,0.00025273,2]
[355784566,1741561839188,-500.0,0.00025273,2]
[355784567,1741561839199,-500.0,0.00025273,2]
[355784568,1741561839209,-500.0,0.00025273,2]
[355784569,1741561839219,-500.0,0.00025273,2]
[355784570,1741561839229,-491.8805351,0.00025273,2]
[355784571,1741561839239,-240.0,0.00025273,2]
[355784572,1741561839249,-500.0,0.00025273,2]
[355784573,1741561839260,-500.0,0.00025273,2]
[355784574,1741561839269,-500.0,0.00025273,2]
[355784575,1741561839279,-500.0,0.00025273,2]
[355784576,1741561839290,-500.0,0.00025273,2]
[355784577,1741561839301,-500.0,0.00025273,2]
[355784578,1741561839311,-500.0,0.00025273,2]
[355784579,1741561839321,-500.0,0.00025273,2]
[355784580,1741561839331,-500.0,0.00025273,2]
[355784581,1741561839342,-500.0,0.00025273,2]
[355784582,1741561839352,-500.0,0.00025273,2]
[355784583,1741561839363,-500.0,0.00025273,2]
[355784584,1741561839373,-500.0,0.00025273,2]
[355784585,1741561839384,-892.42803541,0.00025275,2]
[355784586,1741561839399,-437100.79856205,0.00025275,2]
[355784587,1741561839409,-45197.1627672,0.00025275,2]
[355784588,1741561839419,-3013.14418448,0.00025277,2]
[355784589,1741561839430,-53707.8943986,0.00025287,2]
[355784590,1741561839440,-2400.21986405,0.000259,4]
[355784591,1741561839451,-600.0,0.00026068,2]
[355784592,1741561839462,-500.49378233,0.00026073,2]
[355784593,1741561839472,-503.00320574,0.00026073,2]
[355784594,1741561839482,-500.0,0.00026073,2]
[355784595,1741561839491,-303.4,0.00026073,2]
[355784596,1741561839501,-157.40456359,0.00026073,2]
[355784597,1741561839511,-12052.5767379,0.00026073,2]
[355784598,1741561839520,-151.0,0.00026079,2]
[355784599,1741561839530,-160.35,0.00026084,2]
[355784600,1741561839539,-622.2,0.00026123,2]
[355784601,1741561839548,-645.2214,0.00026178,2]
[355784602,1741561839558,-669.0945918,0.00026233,2]
[355784603,1741561839669,-693.8510917,0.00026288,2]
[355784604,1741561839680,-719.52358209,0.00026343,2]
[355784605,1741561839690,-746.14595463,0.00026398,2]
[355784606,1741561839699,-773.75335495,0.00026453,2]
[355784607,1741561839709,-802.38222908,0.00026508,2]
[355784608,1741561839719,-161.77265436,0.00026627,2]
[355784609,1741561839729,-1460.02,0.00026634,3]
[355784610,1741561839738,-730.02,0.00026634,3]
[355784611,1741561839748,-365.0,0.00026634,3]
[355784612,1741561839758,-420.0,0.0002737,2]
[355784613,1741561839768,-500.0,0.00027373,2]
[355784614,1741561839778,-235.08155043,0.00027396,2]
[355784615,1741561839788,-218.155562,0.00027397,7]
[355784616,1741561839798,-218.155562,0.00027397,7]
[355784617,1741561839808,-151.0,0.00027397,7]
[355784618,1741561839818,-227.354026,0.00027397,7]
[355784619,1741561839828,-268.956768,0.00027397,7]
[355784620,1741561839837,-227.354026,0.00027397,7]
[355784621,1741561839847,-268.956768,0.00027397,7]
[355784622,1741561839857,-10865.48403233,0.00027602,2]
[355784623,1741561839868,-4605.09896809,0.00027702,2]
[355784624,1741561839877,-416.66666667,0.00028,3]
[355784625,1741561839887,-416.66666667,0.00028,3]
[355784626,1741561839896,-416.66666667,0.00028,3]
[355784627,1741561839905,-808.30557669,0.0002802,2]
[355784628,1741561839915,-500.0,0.0002802,2]
[355784629,1741561839924,-905.46502393,0.0002802,2]
[355784630,1741561839934,-500.0,0.0002802,2]
[355784631,1741561839944,-500.0,0.0002802,2]
[355784632,1741561839954,-799.13306839,0.0002802,2]
[355784633,1741561839964,-500.0,0.0002802,2]
[355784634,1741561839975,-500.0,0.0002802,2]
[355784635,1741561839985,-903.43292443,0.0002802,2]
[355784636,1741561840000,-500.0,0.00028452,5]
[355784637,1741561840009,-500.0,0.00028452,5]
[355784638,1741561840019,-504.4406362,0.00028452,5]
[355784639,1741561840030,-500.0,0.00028585,5]
[355784641,1741561840043,-500.0,0.00028585,5]
[355784642,1741561840053,-500.0,0.00028585,5]
[355784644,1741561840063,-500.0,0.00028585,5]
[355784646,1741561840074,-502.221594,0.00028585,5]
[355784647,1741561840084,-500.0,0.00028585,5]
[355784648,1741561840096,-500.0,0.00028585,2]
[355784649,1741561840107,-500.0,0.00028585,3]
[355784651,1741561840117,-500.0,0.00028585,5]
[355784653,1741561840129,-500.0,0.00028585,5]
[355784654,1741561840139,-501.08401932,0.00028585,5]
[355784655,1741561840149,-500.0,0.00028585,5]
[355784656,1741561840159,-463.23634732,0.00028585,5]
[355784657,1741561840168,-500.0,0.00028585,5]
[355784658,1741561840179,-500.0,0.00028585,5]
[355784659,1741561840190,-369.02588663,0.00028585,5]
[355784660,1741561840200,-500.0,0.00028585,5]
[355784661,1741561840210,-500.0,0.00028585,5]
[355784664,1741561840221,-500.0,0.00028585,5]
[355784665,1741561840231,-500.0,0.00028585,5]
[355784666,1741561840241,-500.0,0.00028585,5]
[355784667,1741561840251,-500.0,0.00028585,5]
[355784668,1741561840260,-500.0,0.00028585,5]
[355784669,1741561840270,-500.0,0.00028585,5]
[355784670,1741561840280,-500.0,0.00028585,5]
[355784671,1741561840289,-500.0,0.00028585,5]
[355784672,1741561840300,-500.0,0.00028585,5]
[355784673,1741561840311,-500.0,0.00028585,5]
[355784674,1741561840321,-500.0,0.00028585,5]
[355784675,1741561840331,-500.0,0.00028585,5]
[355784676,1741561840342,-500.0,0.00028585,5]
[355784677,1741561840352,-500.0,0.00028585,5]
[355784678,1741561840362,-500.0,0.00028585,2]
[355784679,1741561840372,-500.0,0.00028585,5]
[355784680,1741561840383,-500.0,0.00028585,5]
[355784681,1741561840393,-500.0,0.00028585,5]
[355784682,1741561840402,-500.0,0.00028585,5]
[355784683,1741561840412,-500.0,0.00028585,5]
[355784684,1741561840423,-500.0,0.00028585,5]
[355784685,1741561840433,-500.0,0.00028585,5]
[355784686,1741561840444,-500.0,0.00028585,5]
[355784687,1741561840454,-199.14981708,0.00028585,5]
[355784688,1741561840464,-500.0,0.00028585,5]
[355784689,1741561840474,-500.0,0.00028585,5]
[355784690,1741561840485,-500.0,0.00028585,5]
[355784691,1741561840495,-500.0,0.00028585,5]
[355784692,1741561840506,-515.72089983,0.00028585,5]
[355784693,1741561840516,-500.98437838,0.00028585,5]
[355784694,1741561840527,-500.0,0.00028585,5]
[355784695,1741561840536,-571.41932871,0.00028585,3]
[355784696,1741561840547,-501.19077754,0.00028585,5]
[355784697,1741561840557,-500.0,0.00028585,5]
[355784698,1741561840567,-250.98749992,0.00028585,5]
[355784699,1741561840577,-507.29796417,0.00028585,5]
[355784700,1741561840587,-500.0,0.0002888,5]
[355784701,1741561840598,-522.4884576,0.00028999,2]
[355784702,1741561840609,-4797.57621674,0.00029,2]
[355784703,1741561840619,-587.0,0.00029643,2]
[355784704,1741561840630,-428.0,0.0003,2]
[355784705,1741561840640,-277.40872964,0.0003,10]
[355784706,1741561840651,-695.46244062,0.00030199,2]
[355784707,1741561840661,-1000.0,0.00030752,5]
[355784708,1741561840671,-1000.0,0.00030752,5]
[355784709,1741561840680,-1112.8802946,0.00030752,2]
[355784710,1741561840691,-475.88153512,0.00030752,5]
[355784711,1741561840700,-1138.19987797,0.00030752,5]
[355784712,1741561840710,-1000.0,0.00030752,5]
[355784713,1741561840720,-1000.0,0.00030752,2]
[355784714,1741561840730,-500.0,0.00031552,2]
[355784715,1741561840740,-823.0,0.00032104,2]
[355784716,1741561840751,-343.41308474,0.00032852,5]
[355784717,1741561840761,-181.8,0.000329,30]
[355784718,1741561840770,-401.19,0.000329,30]
[355784719,1741561840781,-195.088982,0.000329,14]
[355784720,1741561840791,-195.088982,0.000329,14]
[355784721,1741561840801,-933.074698,0.000329,14]
[355784722,1741561840812,-933.074698,0.000329,14]
[355784724,1741561840822,-151.0,0.000329,14]
[355784726,1741561840832,-326.92,0.000329,30]
[355784728,1741561840843,-18327.77,0.000329,30]
[355784729,1741561840852,-151.0,0.000329,14]
[355784730,1741561840860,-237.538368,0.000329,14]
[355784731,1741561840868,-416.66666667,0.000329,30]
[355784732,1741561840875,-213.250904,0.000329,14]
[355784733,1741561840884,-213.250904,0.000329,14]
[355784734,1741561840894,-669.77,0.000329,30]
[355784735,1741561840903,-730.78,0.000329,14]
[355784736,1741561840912,-15555.67399697,0.000329,30]
[355784737,1741561840923,-274.5963959,0.00033,10]
[355784738,1741561840934,-339.77639796,0.00033,10]
[355784739,1741561840945,-274.5963959,0.00033,10]
[355784741,1741561840955,-500.0,0.00033,10]
[355784743,1741561840965,-500.0,0.00033,10]
[355784745,1741561840980,-500.0,0.00033,10]
[355784747,1741561840991,-501.89757263,0.00033,10]
[355784755,1741561841076,-500.0,0.00033,10]
[355784757,1741561841097,-500.0,0.00033,10]
[355784759,1741561841107,-500.0,0.00033,10]
[355784761,1741561841117,-500.0,0.00033,10]
[355784763,1741561841127,-500.0,0.00033,10]
[355784765,1741561841138,-500.0,0.00033,10]
[355784767,1741561841149,-500.0,0.00033,10]
[355784769,1741561841159,-500.0,0.00033,10]
[355784771,1741561841169,-500.0,0.00033,10]
[355784773,1741561841180,-198.305,0.00033438,2]
[355784775,1741561841190,-1000.0,0.00033932,5]
[355784777,1741561841201,-505.16017197,0.00033932,5]
[355784779,1741561841212,-4797.57621674,0.00034,2]
[355784781,1741561841222,-1000.0,0.00034064,5]
[355784784,1741561841234,-1000.0,0.00034064,5]
[355784786,1741561841245,-1000.0,0.00034064,5]
[355784788,1741561841255,-1000.0,0.00034064,5]
[355784790,1741561841265,-1000.0,0.00034064,5]
[355784792,1741561841275,-1000.0,0.00034064,2]
[355784794,1741561841285,-1000.0,0.00034064,3]
[355784796,1741561841295,-1000.0,0.00034064,5]
[355784798,1741561841305,-406.96415105,0.00034064,5]
[355784800,1741561841315,-1107.23108164,0.00034064,5]
[355784802,1741561841324,-500.0,0.00034064,5]
[355784804,1741561841334,-1000.0,0.00034064,5]
[355784806,1741561841344,-1000.0,0.00034064,5]
[355784808,1741561841354,-1000.0,0.00034064,5]
[355784809,1741561841364,-156.05440808,0.00034064,5]
[355784811,1741561841374,-1000.0,0.00034064,5]
[355784813,1741561841384,-1000.0,0.00034064,5]
[355784815,1741561841397,-973.24286959,0.00034064,5]
[355784817,1741561841406,-1000.0,0.00034064,5]
[355784819,1741561841416,-1000.0,0.00034064,5]
[355784821,1741561841426,-1000.0,0.00034064,5]
[355784822,1741561841437,-500.0,0.00034064,5]
[355784823,1741561841447,-503.16555725,0.00034064,5]
[355784824,1741561841456,-1000.0,0.00034064,5]
[355784825,1741561841466,-171.67261932,0.00034064,5]
[355784826,1741561841475,-1000.0,0.00034064,2]
[355784827,1741561841485,-503.90034788,0.00034064,5]
[355784828,1741561841496,-153.26330679,0.00034064,5]
[355784829,1741561841505,-1000.0,0.00034064,5]
[355784830,1741561841516,-1000.0,0.00034064,5]
[355784831,1741561841527,-500.0,0.00034064,5]
[355784832,1741561841536,-1000.0,0.00034064,5]
[355784833,1741561841546,-1000.0,0.00034064,5]
[355784834,1741561841556,-1000.0,0.00034064,5]
[355784835,1741561841566,-1000.0,0.00034064,5]
[355784836,1741561841576,-500.0,0.00034064,5]
[355784837,1741561841586,-1000.0,0.00034064,5]
[355784838,1741561841596,-1000.0,0.00034064,5]
[355784839,1741561841607,-500.0,0.00034064,5]
[355784840,1741561841616,-397.31026009,0.00034359,5]
[355784841,1741561841626,-1152.0,0.00034769,2]
[355784842,1741561841636,-168.89475,0.00035,5]
[355784843,1741561841646,-171.588,0.00035,5]
[355784844,1741561841657,-156.736,0.00035,5]
[355784845,1741561841667,-150.777,0.00035,5]
[355784846,1741561841677,-467.035127,0.0003589,2]
[355784847,1741561841688,-163.40202586,0.000362,98]
[355784848,1741561841699,-2000.0,0.00036857,4]
[355784849,1741561841708,-227.39485792,0.000372,2]
[355784850,1741561841719,-227.39485792,0.000372,2]
[355784851,1741561841729,-227.39485792,0.000372,2]
[355784852,1741561841739,-326.92,0.000372,30]
[355784853,1741561841749,-730.78,0.000372,14]
[355784854,1741561841760,-18327.77,0.000374,30]
[355784855,1741561841770,-669.77,0.000376,30]
[355784856,1741561841780,-3996.435111,0.0003761,2]
[355784857,1741561841790,-1613.0,0.00037656,2]
[355784858,1741561841800,-150.0,0.0003784,2]
[355784859,1741561841811,-150.0,0.0003921,2]
[355784860,1741561841821,-160.0,0.00039687,2]
[355784861,1741561841831,-416.66666667,0.00039687,2]
[355784862,1741561841841,-6045.49232978,0.0004,15]
[355784863,1741561841851,-250.0,0.00040158,2]
[355784864,1741561841862,-150.0,0.0004058,2]
[355784865,1741561841873,-156.736,0.00040606,14]
[355784866,1741561841884,-478.13895481,0.00040771,5]
[355784867,1741561841895,-1500.0,0.00040771,5]
[355784868,1741561841906,-531.49308774,0.00040771,5]
[355784869,1741561841918,-1500.0,0.00040771,2]
[355784870,1741561841927,-2258.0,0.00040783,5]
[355784871,1741561841938,-200.0,0.00040787,2]
[355784872,1741561841950,-1547.99783047,0.00040893,2]
[355784873,1741561841961,-717.94,0.000411,30]
[355784874,1741561841973,-467.035127,0.00041211,2]
[355784875,1741561841984,-326.92,0.000417,30]
[355784876,1741561841996,-730.78,0.000417,14]
[355784877,1741561842007,-182.973018,0.00041861,2]
[355784878,1741561842018,-18327.77,0.000419,30]
[355784879,1741561842028,-416.66666667,0.000419,30]
[355784880,1741561842039,-150.0,0.00041949,30]
[355784881,1741561842049,-163.40202585,0.00041993,120]
[355784882,1741561842060,-181.8,0.00042,30]
[355784883,1741561842072,-401.19,0.00042,30]
[355784884,1741561842082,-669.77,0.00042,30]
[355784885,1741561842092,-2067.65710035,0.000424,15]
[355784886,1741561842102,-182.973018,0.00042489,2]
[355784887,1741561842112,-416.66666667,0.00042871,10]
[355784888,1741561842123,-15555.67399697,0.000429,10]
[355784889,1741561842133,-182.973018,0.00043117,2]
[355784890,1741561842143,-150.0,0.00043319,30]
[355784891,1741561842153,-717.94,0.000434,30]
[355784892,1741561842164,-2000.0,0.00043428,4]
[355784893,1741561842175,-182.973018,0.00043745,2]
[355784894,1741561842185,-150.0,0.00043817,10]
[355784895,1741561842195,-500.0,0.00043817,10]
[355784896,1741561842206,-150.0,0.00043817,10]
[355784897,1741561842217,-150.0,0.00043817,3]
[355784898,1741561842227,-500.0,0.00043835,120]
[355784899,1741561842237,-500.0,0.00043835,120]
[355784900,1741561842247,-489.48289507,0.0004384,120]
[355784901,1741561842258,-489.48289507,0.0004384,120]
[355784902,1741561842268,-489.48289507,0.0004384,120]
[355784903,1741561842278,-489.48289507,0.0004384,120]
[355784904,1741561842287,-489.48289507,0.0004384,120]
[355784905,1741561842297,-489.48289507,0.0004384,120]
[355784906,1741561842307,-489.48289507,0.0004384,120]
[355784907,1741561842317,-489.48289507,0.0004384,120]
[355784908,1741561842329,-489.48289507,0.0004384,120]
[355784909,1741561842339,-489.48289507,0.0004384,120]
[355784910,1741561842431,-489.48289507,0.0004384,120]
[355784911,1741561842442,-489.48289507,0.0004384,120]
[355784912,1741561842452,-489.48289507,0.0004384,120]
[355784913,1741561842462,-489.48289507,0.0004384,120]
[355784914,1741561842472,-489.48289507,0.0004384,120]
[355784915,1741561842487,-489.48289507,0.0004384,120]
[355784916,1741561842507,-489.48289507,0.0004384,120]
[355784917,1741561842518,-489.48289507,0.0004384,120]
[355784918,1741561842529,-489.48289507,0.0004384,120]
[355784919,1741561842540,-489.48,0.0004384,120]
[355784920,1741561842551,-1142.12675515,0.0004384,120]
[355784921,1741561842563,-1142.12675515,0.0004384,120]
[355784922,1741561842574,-1142.12675515,0.0004384,120]
[355784923,1741561842584,-1142.12675515,0.0004384,120]
[355784924,1741561842594,-1142.12675515,0.0004384,120]
[355784925,1741561842605,-1142.12675515,0.0004384,120]
[355784926,1741561842615,-1142.12675515,0.0004384,120]
[355784927,1741561842625,-1142.12675515,0.0004384,120]
[355784928,1741561842635,-1142.12675515,0.0004384,120]
[355784929,1741561842645,-1142.12675515,0.0004384,120]
[355784930,1741561842654,-1142.12675515,0.0004384,120]
[355784931,1741561842665,-1142.12675515,0.0004384,120]
[355784932,1741561842676,-1142.12675515,0.0004384,120]
[355784933,1741561842687,-1142.12675515,0.0004384,120]
[355784934,1741561842697,-15555.67399697,0.000439,120]
[355784935,1741561842708,-215.59101184,0.00043951,10]
[355784936,1741561842718,-1142.12675515,0.0004408,120]
[355784937,1741561842730,-612.17089826,0.00044083,10]
[355784938,1741561842741,-542.18649982,0.00044083,10]
[355784939,1741561842751,-769.90842806,0.00044083,10]
[355784940,1741561842761,-1011.63126491,0.00044083,10]
[355784941,1741561842771,-1000.0,0.00044083,10]
[355784942,1741561842782,-576.69506356,0.00044083,2]
[355784943,1741561842792,-504.59174012,0.00044083,3]
[355784944,1741561842802,-1328.33593079,0.00044083,10]
[355784945,1741561842812,-1500.0,0.00044083,10]
[355784946,1741561842823,-995.86793105,0.00044083,10]
[355784948,1741561842833,-1500.0,0.00044083,10]
[355784949,1741561842842,-1500.0,0.00044083,10]
[355784951,1741561842852,-1500.0,0.00044083,10]
[355784952,1741561842862,-1034.74017631,0.00044083,10]
[355784953,1741561842872,-692.25378725,0.00044083,10]
[355784954,1741561842882,-1505.7871946,0.00044083,10]
[355784955,1741561842893,-1500.0,0.00044083,10]
[355784956,1741561842904,-1500.0,0.00044083,2]
[355784957,1741561842914,-1500.0,0.00044083,10]
[355784959,1741561842924,-1500.0,0.00044083,10]
[355784960,1741561842935,-888.21808339,0.00044083,10]
[355784962,1741561842944,-1308.08702681,0.00044083,10]
[355784964,1741561842955,-1273.3068307,0.00044083,10]
[355784966,1741561842965,-675.00708754,0.00044083,10]
[355784968,1741561842977,-1500.0,0.00044083,10]
[355784970,1741561842987,-1001.90902063,0.00044083,10]
[355784972,1741561843000,-2667.0,0.00044169,5]
[355784974,1741561843010,-150.62926331,0.00044365,10]
[355784977,1741561843022,-1000.0,0.00044365,10]
[355784980,1741561843032,-153.52596453,0.00044365,10]
[355784982,1741561843043,-250.0,0.00044365,3]
[355784986,1741561843053,-182.973018,0.00044372,2]
[355784989,1741561843064,-500.0,0.00044383,120]
[355784992,1741561843075,-500.0,0.00044383,120]
[355784995,1741561843087,-326.92,0.000444,30]
[355784997,1741561843097,-1142.12675515,0.00044544,120]
[355784999,1741561843107,-730.78,0.000446,30]
[355785002,1741561843118,-150.0,0.00044689,30]
[355785004,1741561843128,-18327.77,0.000447,30]
[355785007,1741561843139,-519.97473805,0.00044913,10]
[355785010,1741561843150,-303.35418894,0.00044913,3]
[355785015,1741561843162,-500.0,0.00044931,120]
[355785018,1741561843172,-500.0,0.00044931,120]
[355785021,1741561843184,-669.77,0.00045,30]
[355785024,1741561843195,-1142.12675515,0.00045008,120]
[355785026,1741561843206,-500.0,0.00045205,60]
[355785029,1741561843216,-1142.12675515,0.00045472,120]
[355785033,1741561843228,-500.0,0.00045479,60]
[355785037,1741561843239,-500.0,0.00045479,120]
[355785042,1741561843250,-500.0,0.00045479,120]
[355785047,1741561843261,-500.0,0.00045753,60]
[355785051,1741561843273,-1142.12675515,0.00045936,120]
[355785053,1741561843284,-200.0,0.00046,120]
[355785055,1741561843296,-250.98361,0.00046,120]
[355785057,1741561843307,-500.0,0.00046027,60]
[355785059,1741561843315,-150.0,0.00046059,30]
[355785061,1741561843324,-717.94,0.000461,30]
[355785063,1741561843333,-500.0,0.00046301,60]
[355785065,1741561843344,-1142.12,0.000464,120]
[355785067,1741561843354,-170.39,0.00046499,7]
[355785070,1741561843365,-170.39,0.00046499,7]
[355785073,1741561843375,-170.39,0.00046499,7]
[355785076,1741561843385,-170.39,0.00046499,7]
[355785079,1741561843396,-170.39,0.00046499,7]
[355785082,1741561843406,-170.39,0.00046499,7]
[355785085,1741561843416,-764.75,0.00046499,7]
[355785087,1741561843427,-764.75,0.00046499,7]
[355785089,1741561843438,-764.75,0.00046499,7]
[355785091,1741561843448,-764.75,0.00046499,7]
[355785093,1741561843459,-2000000.0,0.00046499,30]
[355785095,1741561843469,-200000.0,0.000465,30]
[355785096,1741561843481,-1314561.55631275,0.000465,30]
[355785099,1741561843507,-582.583608,0.000465,120]
[355785101,1741561843517,-582.583608,0.000465,120]
[355785102,1741561843528,-195.088982,0.000465,120]
[355785104,1741561843538,-195.088982,0.000465,120]
[355785107,1741561843548,-933.074698,0.000465,120]
[355785109,1741561843558,-933.074698,0.000465,120]
[355785111,1741561843567,-151.0,0.000465,120]
[355785112,1741561843577,-151.0,0.000465,120]
[355785114,1741561843587,-151.0,0.000465,120]
[355785117,1741561843598,-218.155562,0.000465,120]
[355785119,1741561843608,-218.155562,0.000465,120]
[355785120,1741561843618,-151.0,0.000465,120]
[355785122,1741561843628,-151.0,0.000465,120]